Nominal Code Description,Transaction Detail,Date Paid,Total,Payee Name
Salaries and Wages,May Tax & NI,24/05/2021,"2,348",HM Revenue and Customs
Play Equipment Maint & Repairs,New equipment in CP,20/05/2021,"4,770",Eibe Play Equipment
Grounds Mtce/Hedge Cutting,UC Allotment Trees inv1166,20/05/2021,504,Laurence Hawkins Tree Surgery
Insurance,Cemetery,07/05/2021,"5,141",Came & Co Insurance
Vandalism Costs,new CCTV Pavilion,05/05/2021,734,MAS Systems Ltd
Grounds Mtce/Hedge Cutting,CP,05/05/2021,746,Southern Land Services Limited
Grounds Mtce/Hedge Cutting,INV 1157 Trees CP,05/05/2021,"1,176",Laurence Hawkins Tree Surgery
Equipment and Protective Cloth,50% Banqueting chairs,05/05/2021,"1,110",IVEO Group
Grounds Mtce/Hedge Cutting,Hub Plants,30/04/2021,"25,399",Glendale Grounds
Salaries and Wages,April Tax & NI,26/04/2021,"2,480",HM Revenue and Customs
Equipment and Protective Cloth,50% payment Banqueting Chairs,26/04/2021,"1,110",IVEO Group
Salaries and Wages,April,23/04/2021,713,Salary
Salaries and Wages,April,23/04/2021,748,Salary
Salaries and Wages,Salary,23/04/2021,"1,032",Salary
Salaries and Wages,April,23/04/2021,"1,473",Salary
Salaries and Wages,April,23/04/2021,"2,269",Salary
Salaries and Wages,Staff Pensions,16/04/2021,972,AVIVA
Grounds Mtce/Hedge Cutting,Annual Grass Cutting,08/04/2021,812,East Sussex County Council
Contractors,Grave Digging,31/03/2021,650,N Phillips
Community Hub Extras,Hub Disabled Push Button +,31/03/2021,3676.2,HD Building & Carpentry
Dog/Litter Bin Emptying,quarterly DogBins,29/03/2021,750,Wealden District Council
Salaries and Wages,March,25/03/2021,564.21,Salary
Salaries and Wages,March,25/03/2021,968.64,Salary
Salaries and Wages,MArch,25/03/2021,1280.18,Salary
Salaries and Wages,March,25/03/2021,2079.03,HM Revenue and Customs
Salaries and Wages,MArch,25/03/2021,2267.05,Salary
Grants and Donations - S 137,Grant,25/03/2021,850,HAilsham Cricket Club
Salaries and Wages,Tax & NI,24/03/2021,2136.4,HM Revenue and Customs
Grounds Mtce/Hedge Cutting,monthly grounds,24/03/2021,745.99,Southern Land Services Limited
Grounds Mtce/Hedge Cutting,Notice Boards x 4 repairs,24/03/2021,1400,C Scott
Subscriptions,annual subscriptions,15/03/2021,1092.92,Society of Local Council Clerk
Salaries and Wages,February Tax & NI,09/03/2021,1300,HM Revenue and Customs
Grounds Mtce/Hedge Cutting,monthly grounds maintenance,04/03/2021,745.99,Southern Land Services Limited
Salaries and Wages,March,25/02/2021,968.64,Salary
Salaries and Wages,February,25/02/2021,978.86,Salary
Salaries and Wages,February,25/02/2021,1188.12,Salary
Salaries and Wages,February,25/02/2021,2267.25,Salary
Salaries and Wages,Feb Tax & NI,25/02/2021,2272.32,HM Revenue and Customs
Grants and Donations - S 137,Grant,22/02/2021,500,Hellingly Rugby Club
Community Hub Extras,Hub Acoustic pads,19/02/2021,6271.2,Acoustic Advice Ltd
Community Hub Extras,ACoustic Pads in Hub,12/02/2021,6271.2,Acoustic Advice Ltd
Community Hub Extras,Hub Internal door move,12/02/2021,10652.4,HD Building & Carpentry
Grounds Mtce/Hedge Cutting,Inv202110055,10/02/2021,745.99,Southern Land Services Limited
Contractors,Grave Digging,08/02/2021,1125,N Phillips
Property Repairs,CAll out & Repair costs,02/02/2021,1284,Assa Abloy Doors
Grounds Mtce/Hedge Cutting,CP & LHB Grounds Maintenance,01/02/2021,745.99,Southern Land Services Limited
Grounds Mtce/Hedge Cutting,allotments hedge maintenance,27/01/2021,564,Laurence Hawkins Tree Surgery
Salaries and Wages,3 months pension payments,26/01/2021,1675.89,AVIVA
Salaries and Wages,January,25/01/2021,968.64,Salary
Salaries and Wages,January,25/01/2021,978.86,Salary
Salaries and Wages,January,25/01/2021,1068.13,Salary
Salaries and Wages,January,25/01/2021,2267.05,Salary
Salaries and Wages,Tax & NI January,21/01/2021,2167.05,HM Revenue and Customs
Grants and Donations - S 137,Grant,08/01/2021,675,Hellingly Bowls Club
Rates and Water,RB Allotments water works,06/01/2021,962.52,South East Water
Grants and Donations - S 137,Grant,05/01/2021,1100,Wealden Citizen Advice
Grants and Donations - S 137,Grant,04/01/2021,1300,St Wilfrids Hospice
Dog/Litter Bin Emptying,Dog Litter Bin collections qtr,29/12/2020,750,Wealden District Council
Grants and Donations - S 137,Grant,23/12/2020,706,Hellingly Cricket Club
Salaries and Wages,outstanding Tax & NI,22/12/2020,2698.69,HM Revenue and Customs
Salaries and Wages,December incl bonus,18/12/2020,1187.09,Salary
Salaries and Wages,December incl bonus,18/12/2020,1298.86,Salary
Salaries and Wages,December incl bonus,18/12/2020,1313.25,Salary
Salaries and Wages,December incl bonus,18/12/2020,3267.16,Salary
Salaries and Wages,December Tax & NI,18/12/2020,3406.01,HM Revenue and Customs
Grants and Donations - S 137,Grant,18/12/2020,500,Friends of Hellingly PReschool
Grants and Donations - S 137,Grant for equipment,18/12/2020,1402.05,Hellingly Primary School
Grounds Mtce/Hedge Cutting,monthly Grounds maintenance,17/12/2020,745.99,Southern Land Services Limited
Grants and Donations - S 137,Donation,16/12/2020,1000,Hailsham Foodbank
Parish Web Site,New online booking system CH,04/12/2020,3018,BarkWeb
Grounds Mtce/Hedge Cutting,RB Allotments groundworks,04/12/2020,12806.4,Agrifactors (Southern) Ltd
Contractors,CH payment,04/12/2020,16496.63,HD Building & Carpentry
Contractors,CH payment,04/12/2020,16840.82,HD Building & Carpentry
Professional fees - other,CH Payment,03/12/2020,50000,HD Building & Carpentry
Contractors,CH payment,02/12/2020,50000,HD Building & Carpentry
Salaries and Wages,November Tax & NI,27/11/2020,2259.8,HM Revenue and Customs
Play Equipment Maint & Repairs,Dupe payment net refunded,27/11/2020,562.5,Eibe Play Equipment
Play Equipment Maint & Repairs,Play Inspection,27/11/2020,562.5,Eibe Play Equipment
Salaries and Wages,November,25/11/2020,968.64,Salary
Salaries and Wages,November,25/11/2020,979.06,Salary
Salaries and Wages,November,25/11/2020,1228.55,Salary
Salaries and Wages,November,25/11/2020,2267.25,Salary
Community Hub Extras,CH Blinds final payment,25/11/2020,2218,Creative Curtains Hailsham
Grounds Mtce/Hedge Cutting,monthly Grounds maintenance,11/11/2020,745.99,Southern Land Services Limited
Computer Software & Support,New laptop (TH),11/11/2020,797.04,Uniserve Southeast Ltd
Play Equipment Maint & Repairs,Refurbishish & reinstall play,03/11/2020,4763.69,Grounds Contractors
Play Equipment Maint & Repairs,Remaining balance for new play,29/10/2020,31071.24,Eibe Play Equipment
Computer Software & Support,New laptop,29/10/2020,682.8,Uniserve Southeast Ltd
Salaries and Wages,Pension Payments 4 staff,27/10/2020,1548.49,AVIVA
Salaries and Wages,October,23/10/2020,968.64,Salary
Salaries and Wages,October,23/10/2020,1066.37,Salary
Salaries and Wages,October,23/10/2020,1067.93,Salary
Salaries and Wages,October Tax & NI,23/10/2020,1650.7,HM Revenue and Customs
Salaries and Wages,October,23/10/2020,2267.05,Salary
Salaries and Wages,Youth Club Annual Salary Part2,15/10/2020,3800,Hailsham Town Council
Insurance,CH Insurance,15/10/2020,1016.39,Came & Co Insurance
Grounds Mtce/Hedge Cutting,CP & LHB Grounds,06/10/2020,745.99,Southern Land Services Limited
Dog/Litter Bin Emptying,Country Park,28/09/2020,1500,Wealden District Council
Salaries and Wages,September,25/09/2020,968.64,Salary
Salaries and Wages,September,25/09/2020,1254.6,Salary
Salaries and Wages,September,25/09/2020,1301.59,Salary
Salaries and Wages,September,25/09/2020,2530.25,Salary
Community Hub Extras,Chair Collection,18/09/2020,654.99,C Hoodless
Security CCTV,CH CCTV,16/09/2020,6312.03,AirTight Security
Salaries and Wages,Sept Tax & NI,16/09/2020,2030.86,HM Revenue and Customs
Contractors,Grave Digging,16/09/2020,500,Mr N Phillips
Contractors,CH Kitchen final payment,10/09/2020,834,South Coast Catering Equipment
Audit Fees - External,Annual Accounts Audit,10/09/2020,2400,PKF Littlejohn LLP
Grounds Mtce/Hedge Cutting,CH Grounds Maintenance,09/09/2020,745.99,Southern Land Services Limited
Computer Software & Support,CH Phone & Broadband set up,09/09/2020,2086.62,Uniserve Southeast Ltd
Rent,UC Allotments land rent,04/09/2020,600,Mr P Gates
Professional fees - other,CH Project Mgr,04/09/2020,5372.4,Technical & Development Servic
Community Hub Extras,CH Eletric Car Charger,04/09/2020,2079,Little Green Energy Company
Salaries and Wages,August,25/08/2020,957.78,Salary
Salaries and Wages,August,25/08/2020,968.64,Salary
Salaries and Wages,August,25/08/2020,1021.28,Salary
Salaries and Wages,August Tax & NI,25/08/2020,1546.73,HM Revenue and Customs
Salaries and Wages,August,25/08/2020,2214.65,Salary
Professional fees - other,CH PRoject ~Mgr,07/08/2020,5458.8,Technical & Development Servic
Grounds Mtce/Hedge Cutting,monthly CP Grounds,07/08/2020,745.99,Southern Land Services Limited
Grounds Mtce/Hedge Cutting,Roebuck Allotments Water pipes,07/08/2020,5443.2,Reed Plant Hire - KEvin
Community Hub Extras,TV CH,07/08/2020,1515.66,Davis TV Services
Community Hub Extras,CH Projectors,07/08/2020,3548.89,Davis TV Services
Contractors,Payment 16,06/08/2020,180760.68,HD Building & Carpentry
Contractors,Grave Digging,29/07/2020,500,Mr N Phillips
Salaries and Wages,Pension Payments May - July,27/07/2020,1643.82,AVIVA
Salaries and Wages,July,24/07/2020,968.64,Salary
Salaries and Wages,July,24/07/2020,1021.48,Salary
Salaries and Wages,July Tax & NI,24/07/2020,1594.53,HM Revenue and Customs
Salaries and Wages,July,24/07/2020,2214.45,Salary
Salaries and Wages,July,22/07/2020,524.72,Salary
Salaries and Wages,July,22/07/2020,957.78,Salary
Health and Safety,Defib Boxes for CH,22/07/2020,574.99,British Heart Foundation
Equipment and Protective Cloth,Defib Boxes Kings Head & VH,22/07/2020,1149.98,British Heart Foundation
Contractors,CH Kitchen Equipment,22/07/2020,1805.99,Smythe & Barrie Hailsham
Grounds Mtce/Hedge Cutting,monthly Grounds,14/07/2020,745.99,Southern Land Services Limited
Professional fees - other,CH PRoject Mgr,06/07/2020,5458.8,Technical & Development Servic
Salaries and Wages,July,25/06/2020,957.78,Salary
Salaries and Wages,June,25/06/2020,968.64,Salary
Salaries and Wages,June,25/06/2020,1021.28,Salary
Salaries and Wages,June,25/06/2020,2214.65,Salary
Salaries and Wages,June,24/06/2020,957.78,Salary
Salaries and Wages,June,24/06/2020,968.64,Salary
Salaries and Wages,June,24/06/2020,1021.28,Salary
Salaries and Wages,June,24/06/2020,2214.65,Salary
Professional fees - other,NDP Consultancy,23/06/2020,1099.56,Eimear Murphy Ass
Salaries and Wages,June Tax & NI,22/06/2020,1110.6,HM Revenue and Customs
Community Hub Extras,CH Roller Blinds,22/06/2020,2010,Creative Curtains Hailsham
Rates and Water,Water Bill to be checked,16/06/2020,558.09,Business Stream Waste Services
Professional fees - other,CH Project Mgr,08/06/2020,5458.8,Technical & Development Servic
Grounds Mtce/Hedge Cutting,Grounds maintence,08/06/2020,1491.98,Southern Land Services Limited
Community Hub Extras,CH 15th Payment,02/06/2020,24994.9,HD Building & Carpentry
Contractors,CH 15th Payment,01/06/2020,50000,HD Building & Carpentry
Salaries and Wages,May,26/05/2020,957.58,Salary
Salaries and Wages,May,26/05/2020,968.64,Salary
Salaries and Wages,May,26/05/2020,1021.48,Salary
Salaries and Wages,May Tax & NI,26/05/2020,1546.53,HM Revenue and Customs
Salaries and Wages,May,26/05/2020,1862.58,Salary
Salaries and Wages,May,26/05/2020,2214.45,Salary
Grounds Mtce/Hedge Cutting,Final Invoice Payment,26/05/2020,1964.4,Barcombe Landscapes Ltd
Grounds Mtce/Hedge Cutting,Grounds Maintenance & Repars,26/05/2020,3470.28,Agrifactors (Southern) Ltd
Computer Software & Support,Year End Restating of 2yrs acc,18/05/2020,672,Rialtus Business Solutions Ltd
Community Hub Extras,Deposit Car Charger CH,18/05/2020,693,Little Green Energy Company
Contractors,CH Build Inv 015 part pymnt,30/04/2020,29800,HD Building & Carpentry
Contractors,CH Build Inv 015 part payment,29/04/2020,50000,HD Building & Carpentry
Grounds Mtce/Hedge Cutting,Cemetery Boundary Trees,28/04/2020,1278,Laurence Hawkins Tree Surgery
Salaries and Wages,April,24/04/2020,957.98,Salary
Salaries and Wages,April,24/04/2020,968.64,Salary
Salaries and Wages,April,24/04/2020,1021.48,Salary
Salaries and Wages,April,24/04/2020,2214.65,Salary
Salaries and Wages,May Tax & NI,22/04/2020,1546.53,HM Revenue and Customs
Insurance,Cemetery,22/04/2020,3886.17,Came & Co Insurance
Grounds Mtce/Hedge Cutting,Allotment Trees Inv1065/1066,22/04/2020,612,Laurence Hawkins Tree Surgery
Computer Software & Support,New Payroll System & Training,22/04/2020,547.2,IRIS Payroll System
Salaries and Wages,April Pension Payments,09/04/2020,547.94,AVIVA
Grounds Mtce/Hedge Cutting,RB,09/04/2020,538.8,East Sussex County Council
Grounds Mtce/Hedge Cutting,Apr & Mar Grounds Maintenance,09/04/2020,1500,Southern Land Services Limited
Subscriptions,Annual Subs ESALC/SALC/NALC,07/04/2020,942.87,Society of Local Council Clerk
Professional fees - other,part payment INV SI-874,07/04/2020,900,Technical & Development Servic
Professional fees - other,CH Project Mgr,07/04/2020,4029.6,Technical & Development Servic
Contractors,NDP Consultant,01/04/2019,843.75,David Phillips
Contractors,NDP Consultant,29/03/2019,843.75,David Phillips
Play Equipment Maint & Repairs,INV34310,29/03/2019,1680,Agrifactors (Southern) Ltd
Contractors,CH 2nd PAyment,29/03/2019,27062.46,HD Building & Carpentry
Dog/Litter Bin Emptying,Dog Litter Collections,28/03/2019,750,Wealden District Council
Salaries and Wages,March,25/03/2019,708.29,Salary C
Salaries and Wages,March,25/03/2019,1637.34,Salary B
Salaries and Wages,March Tax & NI,25/03/2019,1848.91,HM Revenue and Customs
Salaries and Wages,March,25/03/2019,2001.09,Salary A
Contractors,Grave Digging,15/03/2019,1025,N Phillips
Professional fees - other,INV SI-312 CH,12/03/2019,3044.93,Technical & Development Servic
Grounds Mtce/Hedge Cutting,INV 34275,08/03/2019,3144,Agrifactors (Southern) Ltd
Contractors,Inv 001 1st payment CH Build,05/03/2019,76936.32,HD Building & Carpentry
Salaries and Wages,February,25/02/2019,708.29,Salary C
Salaries and Wages,February,25/02/2019,1771.02,Salary B
Salaries and Wages,FEbruary,25/02/2019,2000.89,Salary A
Salaries and Wages,Feb Tax & NI,25/02/2019,2057.81,HM Revenue and Customs
Salaries and Wages,pension payments,15/02/2019,544.96,AVIVA
Dog/Litter Bin Emptying,Dog Bins,15/02/2019,1500,Wealden District Council
Salaries and Wages,January Tax & NI,31/01/2019,2053.11,HM Revenue and Customs
Salaries and Wages,Pension payment,25/01/2019,544.96,AVIVA
Salaries and Wages,January,25/01/2019,708.29,Salary C
Grounds Mtce/Hedge Cutting,INV6816 Tree Survey,25/01/2019,1554,PJC Consultancy
Salaries and Wages,January,25/01/2019,1771.02,Salary B
Salaries and Wages,January,25/01/2019,2000.89,Salary A
Grounds Mtce/Hedge Cutting,INV19-17219,25/01/2019,2760,Chaffin Tree Surgery
Councillors' Allowances,Correction,23/01/2019,536.18,G Hesselgrave
Grounds Mtce/Hedge Cutting,INV4472,10/01/2019,3402,Barcombe Landscapes Ltd
Professional fees - other,CH INV SI-234,10/01/2019,5143.2,Technical & Development Servic
Grants and Donations - S 137,correction,01/01/2019,536.18,Hellingly School PTA
Grants and Donations - S 137,Grant,01/01/2019,536.18,Helliongly School PTA
Salaries and Wages,Dec Tax & NI,31/12/2018,2485.5,HM Revenue and Customs
Salaries and Wages,Dec,21/12/2018,873.99,Salary C
Salaries and Wages,Dec,21/12/2018,1858.46,Salary B
Salaries and Wages,Dec,21/12/2018,2356.49,Salary A
Contractors,CH INV TDSS/EW/020/12,20/12/2018,4179,Technical & Development Servic
Subscriptions,Membership renewal,17/12/2018,844.53,SLCC
Contractors,NDP Consultant,13/12/2018,2043.75,David Phillips
Salaries and Wages,Pension payment,12/12/2018,586.68,AVIVA
Grants and Donations - S 137,Grant,11/12/2018,800,St Wildrids Hospice
Grants and Donations - S 137,Grant,07/12/2018,1000,Hellingly Bowls Club
Grants and Donations - S 137,Grant,05/12/2018,562.99,Hellingy School PTA
Grants and Donations - S 137,Grant,05/12/2018,562.99,Hellingly School PTA
Grants and Donations - S 137,Grant,04/12/2018,500,Hellingly Houndogs
Grants and Donations - S 137,Grant,04/12/2018,1100,Wealden Citizen Advice
Grants and Donations - S 137,Grant,03/12/2018,500,Friends of Hellingly PreSchool
Salaries and Wages,pension payment,26/11/2018,544.96,AVIVA
Salaries and Wages,Nov,23/11/2018,708.29,Salary C
Salaries and Wages,Nov,23/11/2018,1458.02,Salary B
Salaries and Wages,Nov Tax & NI,23/11/2018,1722.35,HM Revenue and Customs
Salaries and Wages,Nov,23/11/2018,2000.89,Salary A
Contractors,Grave Digging,22/11/2018,650,NAthan Phillips
Contractors,ND Consultant,21/11/2018,2093.3,Petra Billings
Salaries and Wages,Sept & Oct Pension,26/10/2018,1089.92,AVIVA
Salaries and Wages,Oct,25/10/2018,708.29,Salary C
Salaries and Wages,Oct,25/10/2018,1353.7,Salary B
Salaries and Wages,October Tax & NI,25/10/2018,1674.64,HM Revenue and Customs
Salaries and Wages,October,25/10/2018,2000.89,Salary A
Contractors,NDP Consultant,23/10/2018,918.75,David Phillips
Contractors,CH Project,22/10/2018,10275.6,Technical & Development Servic
Rates and Water,Allotments Water Bill,01/10/2018,603.22,South East Water
Salaries and Wages,Sept Salary,25/09/2018,708.29,Salary D
Salaries and Wages,September Salary,25/09/2018,1353.7,Salary B
Salaries and Wages,Sept Tax & NI,25/09/2018,1674.64,HM Revenue and Customs
Salaries and Wages,Sept Salary,25/09/2018,2001.09,Salary A
Audit Fees - External,External Audit 2017/18,18/09/2018,720,PKF Littlejohn LLP
Property Repairs,VH Boiler Serivce & Certificat,13/09/2018,636,March Plumbing & Heating
Property Repairs,INV 18-16877,12/09/2018,1128,Chaffin Tree Surgery
Salaries and Wages,August Tax & NI,25/08/2018,1674.64,HM Revenue and Customs
Salaries and Wages,August,24/08/2018,708.29,Salary
Salaries and Wages,Pensions Payments,24/08/2018,1089.92,AVIVA
Salaries and Wages,August,24/08/2018,1353.7,Salary
Salaries and Wages,August,24/08/2018,2000.89,Salary
Grounds Mtce/Hedge Cutting,CP Grounds INV 4393,21/08/2018,1836,Barcombe Landscapes Ltd
Play Equipment Maint & Repairs,new swing LHB,07/08/2018,740.52,Playsafety Ltd
Salaries and Wages,JULY,25/07/2018,708.29,Salary C
Salaries and Wages,JULY SALARY,25/07/2018,1353.7,Salary B
Salaries and Wages,July Tax & NI,25/07/2018,1674.64,HM Revenue and Customs
Salaries and Wages,JULY,25/07/2018,2000.89,Salary A
Grounds Mtce/Hedge Cutting,outstanding from INV4255 2017,20/07/2018,1050,Barcombe Landscapes Ltd
Grounds Mtce/Hedge Cutting,CP Grounds Maintenance INV4332,20/07/2018,1404,Barcombe Landscapes Ltd
Professional fees - other,Community Hall Design work,20/07/2018,7272,Technical & Development Servic
Contractors,CH Design work,20/07/2018,8726.4,Technical & Development Servic
Contractors,NDP 28 Apr - 20 June 18,29/06/2018,714.6,David Phillips
Salaries and Wages,June,25/06/2018,708.29,Salary C
Salaries and Wages,June,25/06/2018,1353.7,Salary B
Salaries and Wages,C,25/06/2018,1674.64,HM Revenue and Customs
Salaries and Wages,June,25/06/2018,2000.89,Salary A
Salaries and Wages,Pension Payments,22/06/2018,544.96,AVIVA
Grounds Mtce/Hedge Cutting,Allotment Trees,14/06/2018,680,AJ Catt
Dog/Litter Bin Emptying,Inv70047868,14/06/2018,750,Wealden District Council
Equipment and Protective Cloth,Notice Board Bovis Site,14/06/2018,1257.6,Arien Signs
Professional fees - other,INVTDSS/EW/003/0518,14/06/2018,4830,Technical & Development Servic
Contractors,INVTDSS/EW/003/0518,14/06/2018,5796,Technical & Development Servic
Rent,Allotment Rent,12/06/2018,1050,Peter Gates
Insurance,3 Year Council Insurance,06/06/2018,3648.12,Came & Co Insurance
Computer Software & Support,Inv UNI21955,05/06/2018,515.59,Uniserve Southeast Ltd
Property Repairs,VH Flooring,05/06/2018,2034,Witch Flooring
Salaries and Wages,Groundsman LHB,01/06/2018,532.9,AVIVA
Contractors,NDP Consultant,29/05/2018,673.75,Suzanne collins
Property Repairs,VH Exterior Painting,29/05/2018,1445,Sean Wilkins Building Contract
Salaries and Wages,May Tax & NI,29/05/2018,1620.51,HM Revenue and Customs
Salaries and Wages,Salary C May,25/05/2018,708.29,Salary C
Salaries and Wages,May Salary,25/05/2018,1353.7,Salary B
Salaries and Wages,May Salary,25/05/2018,1915.3,Salary A
Play Equipment Maint & Repairs,Inv33468,10/05/2018,624,Agrifactors (Southern) Ltd
Play Equipment Maint & Repairs,Inv33469,10/05/2018,6960,Agrifactors (Southern) Ltd
Salaries and Wages,Pensions 4 months 3 staff,03/05/2018,2106.4,AVIVA
Salaries and Wages,Cemetery,27/04/2018,708.29,Salary D
Salaries and Wages,April Salary,27/04/2018,1353.7,Salary B
Salaries and Wages,Cemetery Groundsman,27/04/2018,1620.11,HM Revenue and Customs
Salaries and Wages,April Salary,27/04/2018,1923.94,Salary A
"Training, Courses & Conference",Deputy Clerk Training RoSPA,26/04/2018,699,Playsafety Ltd
Contractors,NDP Consultant,26/04/2018,1000,David Phillips
Subscriptions,Annual Subscription,23/04/2018,758.21,East Sussex ALC Ltd
Property Repairs,VH Ceiling Painting,23/04/2018,880,Sean Wilkins Building Contract
Contractors,Invs 20707/20727,23/04/2018,6468.36,Murphy Associates (UK) Ltd
Subscriptions,Annual Subscription 2018/19,12/04/2018,758.21,East Sussex ALC Ltd
Property Repairs,Village Hall Ceiling painting,12/04/2018,880,Sean Wilkins Building Contract
Contractors,Invoice 20707,12/04/2018,6468.36,Murphy Associates (UK) Ltd
Salaries and Wages,March Salary,26/03/2018,674.39,Salary C
Salaries and Wages,March Salary,26/03/2018,1328.37,Salary B
Salaries and Wages,March Salary,26/03/2018,1328.57,Tracy Harper
Salaries and Wages,March Tax & NI,26/03/2018,1595.32,HM Revenue and Customs
Salaries and Wages,March Salary,26/03/2018,1915.3,Salary A
Dog/Litter Bin Emptying,Dog Bins Inv 70046470,19/03/2018,720,Wealden District Council
Rates and Water,Cemetery Rates 2018/19,19/03/2018,774.84,Wealden District Council
Contractors,NDP Consultant,19/03/2018,1338.75,Mr D Phillips
Contractors,NDP Consultant,26/02/2018,656.25,Mrs S Collins
Salaries and Wages,February Salary,25/02/2018,674.39,Salary C
Salaries and Wages,February Salary,25/02/2018,1328.37,Salary B
Salaries and Wages,February Tax & NI,25/02/2018,1595.32,HM Revenue and Customs
Salaries and Wages,February Salary,25/02/2018,1915.3,Salary A
Contractors,NDP Dec 17 - Jan 18,15/02/2018,656.25,Suzanne Collins
Professional fees - other,Banners Gate CH Pl application,15/02/2018,2232,Technical & Development Servic
Salaries and Wages,January Salary,25/01/2018,674.39,Salary C
Salaries and Wages,January Salary,25/01/2018,1328.37,Salary B
Salaries and Wages,January Tax & NI,25/01/2018,1595.32,HM Revenue and Customs
Salaries and Wages,January Salary,25/01/2018,1915.3,Salary A
Contractors,NDP 17 Nov 17 - 19 Jan 18,23/01/2018,1012.5,Mr D Phillips
Grounds Mtce/Hedge Cutting,Earthquaking Rugby Pitch,03/01/2018,2448,Agrifactors (Southern) Ltd
Grounds Mtce/Hedge Cutting,Inv 4129/4255/4264,03/01/2018,7128,Barcombe Landscapes Ltd
Salaries and Wages,December Salary,22/12/2017,819.69,Salary C
Salaries and Wages,December Salary,22/12/2017,1498.37,Salary B
Salaries and Wages,December Tax & NI,22/12/2017,2011.57,HM Revenue and Customs
Salaries and Wages,December Salary,22/12/2017,2187.3,Salary A
Salaries and Wages,Oct - Dec 17 Pension Payments,20/12/2017,1573.5,AVIVA
Contractors,NDP Consultant Oct/Nov,18/12/2017,593.6,S Collins
Dog/Litter Bin Emptying,INV 70045953 Dog Bin Empyting,18/12/2017,720,Wealden District Council
Stationery & Printing,NDP Printing (PlanAhead),07/12/2017,613.83,Cllr J Blake
Contractors,INV BM50068 balance paid,01/12/2017,785,Sussex Wildlife Trust
Salaries and Wages,November Salary,25/11/2017,674.39,Salary C
Salaries and Wages,November Salary,25/11/2017,1328.27,Salary B
Salaries and Wages,November Salary,25/11/2017,1328.27,Salary B
Salaries and Wages,November Tax & NI,25/11/2017,1595.32,HM Revenue and Customs
Salaries and Wages,November Salary,25/11/2017,1915.3,Salary A
Salaries and Wages,November Salary,24/11/2017,674.39,Salary C
Salaries and Wages,November Salary,24/11/2017,1328.27,Salary B
Salaries and Wages,Date Correction,24/11/2017,1595.32,HM Revenue and Customs
Salaries and Wages,November Tax & NI,24/11/2017,1595.32,HM Revenue and Customs
Salaries and Wages,November Salary,24/11/2017,1915.3,Salary A
Grants and Donations - S 137,Grant,21/11/2017,500,Hellingly School PTA
Grants and Donations - S 137,Grant,21/11/2017,500,Friends of Hellingly Preschool
Grants and Donations - S 137,Hellingly Bowls Club,21/11/2017,600,Hellingly Bowls Club
Grants and Donations - S 137,Grant,21/11/2017,1000,Wealden Citizens Advice
Grants and Donations - S 137,Grant,21/11/2017,1000,St Wilfrid's Hospice
Professional fees - other,Community Hall PL Application,21/11/2017,8266,Technical & Development Servic
Contractors,Balance of INV BM50068,14/11/2017,785,Sussex Wildlife Trust
Contractors,Correction of a Correction,14/11/2017,785,Sussex Wildlife Trust
Contractors,NDP Mapping,14/11/2017,872.93,Sussex Wildlife Trust
Property Repairs,Village Hall Resurfacing,14/11/2017,6354,Nicholls Bros (Sussex) Ltd
Contractors,NDP David Phillips,08/11/2017,962.5,Mr D Phillips
Salaries and Wages,Oct Salary,25/10/2017,674.39,Jay Pleece
Salaries and Wages,Oct Salary,25/10/2017,1328.37,Tracy Harper
Salaries and Wages,Oct 17 Tax&NI,25/10/2017,1595.52,HM Revenue and Customs
Salaries and Wages,Oct Salary,25/10/2017,1915.3,J Hoodless
Grounds Mtce/Hedge Cutting,LHB Rec drainage works,13/10/2017,45000,Turfdry Drainage works
Dog/Litter Bin Emptying,Inv70045016 Emptying Dog Bins,12/10/2017,720,Wealden District Council
Contractors,NDP Sept Invoice,04/10/2017,1000,Mr D Phillips
Salaries and Wages,Pension Payments,02/10/2017,524.5,AVIVA
Salaries and Wages,SALARY C SEPT,25/09/2017,674.39,Jay Pleece
Salaries and Wages,SALARY B SEPT,25/09/2017,1328.57,Tracy Harper
Salaries and Wages,Tax & NI September,25/09/2017,1595.32,HM Revenue and Customs
Salaries and Wages,SALARY A SEPT,25/09/2017,1915.3,J Hoodless
Equipment and Protective Cloth,Various Signs for Country Park,14/09/2017,634.8,The Sign Shop
Contractors,NDP Reports,07/09/2017,910,Michael Chesson & Associates
Contractors,NDP August Invoice,29/08/2017,1262.5,Mr D Phillips
Salaries and Wages,August Salary,25/08/2017,674.39,Jay Pleece
Salaries and Wages,August Salary,25/08/2017,1328.37,Tracy Harper
Salaries and Wages,Tax & NI for August,25/08/2017,1598.92,HM Revenue and Customs
Salaries and Wages,Pensions May to August x 3 stf,25/08/2017,1826.22,AVIVA
Salaries and Wages,August Salary,25/08/2017,1915.3,J Hoodless
Salaries and Wages,Tax & NI for August,21/08/2017,1598.92,HM Revenue and Customs
Property Repairs,Remaining Payment for VH Blind,15/08/2017,750,Hillarys Blinds
Contractors,Mapping NDP,15/08/2017,6592.67,Murphy Associates (UK) Ltd
Property Repairs,Village Hall Repairs/Maintenan,08/08/2017,3554.81,Sean Wilkins Building Contract
Contractors,NDP + Clerk Expenses,28/07/2017,505.02,S Collins
Dog/Litter Bin Emptying,Dog Bins Emptying,28/07/2017,720,Wealden District Council
Staff Expenses,NDP + Clerk Expenses,28/07/2017,1056.27,S Collins
Contractors,NDP Project MAy to July,28/07/2017,1387.5,Mr D Phillips
Equipment and Protective Cloth,Dog & Litter Bin,21/07/2017,749.69,Prestige Radiators Ltd
Salaries and Wages,July Salary C,20/07/2017,674.39,Jay Pleece
Salaries and Wages,July Salary B,20/07/2017,917.13,Tracy Harper
Salaries and Wages,PAYE 6th July to 5th August 17,20/07/2017,1307.44,HM Revenue and Customs
Salaries and Wages,HMRC 6th May to 5th June 2017,20/07/2017,1732.35,HM Revenue and Customs
Salaries and Wages,July Salary A,20/07/2017,1915.3,J Hoodless
Equipment and Protective Cloth,Blinds for Village Hall 50%,17/07/2017,750,Hillarys Blinds
Property Repairs,50% VH Blinds,17/07/2017,750,Hillarys Blinds
Computer Software & Support,New Laptop (Tracy),13/07/2017,603.6,Uniserve Southeast Ltd
Contractors,Grave Digging SGL & DBL June,01/07/2017,600,Mr A Phillips
Salaries and Wages,June NI Payment,23/06/2017,1281.57,HM Revenue and Customs
Salaries and Wages,June Salary,20/06/2017,917.13,Tracy Harper
Salaries and Wages,June Salary,20/06/2017,1961.5,J Hoodless
Contractors,SLS - Ash Tree Removal L.Dicke,09/06/2017,1020,Southern Land Services Limited
Contractors,L.Dicker Rec Ash Tree Removal,09/06/2017,1020,Southern Land Services Limited
Contractors,Refund as need to show VAT,07/06/2017,1020,Southern Land Services Limited
Contractors,LD Ash Tree Treatment,07/06/2017,1020,Southern Land Services Limited
Legal Fees,Employment Advice T Harper,25/05/2017,516,Surrey Hills Solicitors
Salaries and Wages,May Salary J Pleece,25/05/2017,674.39,Jay Pleece
Salaries and Wages,May Salary T Harper,25/05/2017,916.93,Tracy Harper
Salaries and Wages,May Salary J Hoodless,25/05/2017,1555.68,J Hoodless
Salaries and Wages,May Salary S Collins,25/05/2017,2215.43,S Collins
Insurance,Annual Council Insurance,25/05/2017,3634.61,Came & Co Insurance
Insurance,Annual Insurance,25/05/2017,3634.61,Came & Co Insurance
Salaries and Wages,Tax & NI for 06 Apr - 05 May,18/05/2017,1430.57,HM Revenue and Customs
Rent Received,correction of rcpt amount,11/05/2017,758.8,Coster Harvey Estate Agents
Subscriptions,Inv 435 Subscriptions,10/05/2017,728.9,East Sussex ALC Ltd
Telephone and Internet,Telephone and Broadband,10/05/2017,783.96,Tracy Harper
Contractors,Planning Consultancy,10/05/2017,800,Mr D Phillips
Salaries and Wages,Salary - April,26/04/2017,2168.22,Salary A
Salaries and Wages,Salary - April,25/04/2017,674.59,Salary C
Salaries and Wages,Salary - April,25/04/2017,912.13,Salary B
Salaries and Wages,PAYE/NI-March,21/04/2017,1461.64,HM Revenue and Customs
Contractors,Inv BM50049-Topic Paper,20/04/2017,1200,Sussex Wildlife Trust
